bitfinex-derivatives/quotes_BTCF0:USTF0_20220103
["timestamp","ask_amount","ask_price","bid_price","bid_amount"]
[1641201929964,1.51364432,46864.0,46863.0,0.14033567]
[1641201930864,0.09081695,46864.0,46863.0,0.14033567]
[1641201931067,0.09081695,46864.0,46863.0,0.5035418]
[1641201931468,0.27881695,46864.0,46863.0,0.5035418]
[1641201931866,0.24546,46864.0,46863.0,0.14033567]
[1641201932666,0.14827695,46864.0,46863.0,0.14033567]
[1641201933465,0.33327695,46864.0,46863.0,0.14033567]
[1641201934480,1.60701427,46864.0,46863.0,0.14033567]
[1641201934681,1.60201427,46864.0,46863.0,0.14033567]
[1641201934880,1.60201427,46864.0,46861.0,0.36320613]
[1641201935380,1.78801427,46864.0,46861.0,0.36320613]
[1641201935580,0.14033567,46863.0,46861.0,0.36320613]
[1641201935781,0.32033567,46863.0,46861.0,0.36320613]
[1641201936281,0.32033567,46863.0,46859.0,0.36320613]
[1641201937580,0.50533567,46863.0,46859.0,0.36320613]
[1641201937781,0.09081695,46862.0,46859.0,0.36320613]
[1641201937983,0.09081695,46862.0,46857.0,0.36320613]
[1641201937984,1.27867162,46860.0,46857.0,0.36320613]
[1641201938982,0.18,46858.0,46857.0,0.36320613]
[1641201939583,0.32033567,46858.0,46857.0,0.36320613]
[1641201939785,0.32033567,46858.0,46856.0,0.36320613]
[1641201940588,0.09081695,46857.0,46853.0,0.36320613]
[1641201941388,0.28281695,46857.0,46853.0,0.36320613]
[1641201942290,1.27954434,46856.0,46853.0,0.36320613]
[1641201942990,1.37036129,46856.0,46853.0,0.36320613]
[1641201943388,1.55936129,46856.0,46853.0,0.36320613]
[1641201943790,1.27954434,46855.0,46854.0,0.36320613]
[1641201944290,0.09081695,46855.0,46854.0,0.36320613]
[1641201945191,1.37036129,46855.0,46854.0,0.36320613]
[1641201945389,1.55836129,46855.0,46854.0,0.36320613]
[1641201945591,1.46754434,46855.0,46854.0,0.36320613]
[1641201946392,1.55836129,46855.0,46854.0,0.36320613]
[1641201946790,1.37036129,46855.0,46854.0,0.36320613]
[1641201947391,1.55936129,46855.0,46854.0,0.36320613]
[1641201947791,1.46854434,46855.0,46854.0,0.36320613]
[1641201948593,1.55936129,46855.0,46854.0,0.36320613]
[1641201948792,1.37036129,46855.0,46854.0,0.36320613]
[1641201949494,1.55936129,46855.0,46854.0,0.36320613]
[1641201950095,1.46854434,46855.0,46854.0,0.36320613]
[1641201950794,1.27954434,46855.0,46853.0,0.60534355]
[1641201950995,0.09081695,46855.0,46854.0,0.60534355]
[1641201951393,0.28081695,46855.0,46854.0,0.60534355]
[1641201951593,0.19,46855.0,46854.0,0.60534355]
[1641201951994,0.53848561,46855.0,46847.0,0.52447988]
[1641201952397,1.83648561,46855.0,46847.0,0.36279879]
[1641201952593,0.18,46850.0,46847.0,0.36279879]
[1641201952794,0.27349,46850.0,46847.0,0.36279879]
[1641201952995,0.09349,46850.0,46847.0,0.36279879]
[1641201953392,0.45849,46850.0,46847.0,0.36279879]
[1641201953994,0.34848561,46849.0,46845.0,0.60534355]
[1641201954194,0.34848561,46849.0,46843.0,0.14033567]
[1641201955198,0.34848561,46848.0,46843.0,0.14033567]
[1641201955797,0.53548561,46849.0,46843.0,0.14033567]
[1641201956696,0.34848561,46849.0,46843.0,0.14033567]
[1641201957498,0.53848561,46849.0,46843.0,0.14033567]
[1641201957696,0.53848561,46849.0,46843.0,0.32033567]
[1641201958900,0.34848561,46849.0,46843.0,0.32033567]
[1641201959103,0.34848561,46849.0,46843.0,0.14033567]
[1641201959301,0.34848561,46850.0,46843.0,0.14033567]
[1641201959500,0.189,46849.0,46843.0,0.14033567]
[1641201960703,0.34848561,46850.0,46843.0,0.14033567]
[1641201961003,0.52848561,46850.0,46843.0,0.14033567]
[1641201961203,0.34848561,46850.0,46843.0,0.14033567]
[1641201961404,0.53548561,46850.0,46843.0,0.14033567]
[1641201961603,0.34848561,46848.0,46843.0,0.14033567]
[1641201963504,0.53548561,46848.0,46843.0,0.14033567]
[1641201964904,0.34848561,46848.0,46843.0,0.14033567]
[1641201965505,0.53448561,46848.0,46843.0,0.14033567]
[1641201966707,0.52848561,46848.0,46843.0,0.14033567]
[1641201966908,0.34848561,46847.0,46843.0,0.14033567]
[1641201967507,0.53448561,46847.0,46843.0,0.14033567]
[1641201968813,0.34848561,46847.0,46843.0,0.14033567]
[1641201969412,0.53148561,46847.0,46843.0,0.14033567]
[1641201970012,0.18,46846.0,46843.0,0.14033567]
[1641201970213,0.53148561,46847.0,46843.0,0.14033567]
[1641201970817,0.34848561,46847.0,46843.0,0.14033567]
[1641201971216,0.92929496,46849.0,46843.0,0.14033567]
[1641201971416,0.185,46847.0,46843.0,0.14033567]
[1641201972716,0.34848561,46849.0,46843.0,0.14033567]
[1641201973521,0.53148561,46849.0,46843.0,0.14033567]
[1641201973820,1.118,46848.0,46843.0,0.14033567]
[1641201974019,1.46517209,46846.0,46843.0,0.14033567]
[1641201974220,1.64517209,46846.0,46843.0,0.14033567]
[1641201974418,0.34717209,46846.0,46843.0,0.14033567]
[1641201974620,0.34717209,46846.0,46839.0,1.8416]
[1641201974818,0.34717209,46846.0,46838.0,0.14033567]
[1641201975024,0.18,46845.0,46838.0,0.14033567]
[1641201975237,0.18,46844.0,46838.0,0.14033567]
[1641201975437,0.25238,46845.0,46838.0,0.14033567]
[1641201975637,0.18,46842.0,46838.0,0.14033567]
[1641201976137,0.52848561,46842.0,46838.0,0.14033567]
[1641201976535,0.34848561,46842.0,46838.0,0.14033567]
[1641201977538,0.53348561,46842.0,46838.0,0.14033567]
[1641201977840,0.53348561,46842.0,46838.0,0.32033567]
[1641201978637,0.34848561,46842.0,46838.0,0.32033567]
[1641201978840,0.34848561,46845.0,46839.0,0.36279879]
[1641201979040,0.34848561,46845.0,46839.0,0.45507879]
[1641201979438,0.52148561,46845.0,46839.0,0.45507879]
[1641201979639,0.52148561,46845.0,46839.0,0.47642785]
[1641201980038,0.52148561,46845.0,46844.0,0.14033567]
[1641201980439,0.173,46845.0,46844.0,0.14033567]
[1641201980941,0.34848561,46847.0,46844.0,0.14033567]
[1641201981541,0.54148561,46847.0,46844.0,0.14033567]
[1641201982740,0.34848561,46847.0,46844.0,0.14033567]
[1641201983541,0.52448561,46847.0,46844.0,0.14033567]
[1641201983742,0.176,46847.0,46844.0,0.14033567]
[1641201984641,0.34848561,46849.0,46844.0,0.14033567]
[1641201984844,0.34848561,46849.0,46844.0,0.50313446]
[1641201985043,0.81313309,46852.0,46844.0,0.50313446]
[1641201985044,0.34848561,46850.0,46844.0,0.50313446]
[1641201985444,0.15,46849.0,46844.0,0.50313446]
[1641201985644,0.15,46849.0,46844.0,0.68313446]
[1641201986045,0.49848561,46849.0,46844.0,0.32033567]
[1641201986446,0.49848561,46849.0,46844.0,0.14033567]
[1641201986847,0.34848561,46849.0,46844.0,0.14033567]
[1641201987448,0.34848561,46847.0,46844.0,0.14033567]
[1641201988148,0.34848561,46846.0,46844.0,0.14033567]
[1641201989549,0.53748561,46846.0,46844.0,0.14033567]
[1641201990650,0.34848561,46846.0,46844.0,0.14033567]
[1641201991550,0.53648561,46846.0,46844.0,0.14033567]
[1641201992051,0.34848561,46845.0,46844.0,0.14033567]
[1641201992550,0.188,46846.0,46844.0,0.14033567]
[1641201992952,0.58080935,46846.0,46844.0,0.14033567]
[1641201993453,0.76880935,46846.0,46844.0,0.14033567]
[1641201994851,0.58080935,46846.0,46844.0,0.14033567]
[1641201995553,0.76880935,46846.0,46844.0,0.14033567]
[1641201997252,0.09082864,46845.0,46844.0,0.50313446]
[1641201998058,1.46954434,46846.0,46844.0,0.50313446]
[1641201998659,1.27954434,46846.0,46844.0,0.50313446]
[1641201999060,0.09082864,46845.0,46844.0,0.14033567]
[1641201999260,1.37037298,46845.0,46844.0,0.14033567]
[1641202001560,1.55937298,46845.0,46844.0,0.14033567]
[1641202002162,0.27982864,46845.0,46844.0,0.50313446]
[1641202002761,0.09082864,46845.0,46844.0,0.50313446]
[1641202003164,1.37037298,46845.0,46844.0,0.14033567]
[1641202003565,1.55937298,46845.0,46844.0,0.32033567]
[1641202003763,1.73937298,46845.0,46843.0,0.36279879]
[1641202004062,1.73937298,46845.0,46844.0,0.36279879]
[1641202004263,1.81063298,46845.0,46844.0,0.36279879]
[1641202004662,1.27954434,46844.0,46842.0,0.36279879]
[1641202005462,0.188,46844.0,46842.0,0.36279879]
[1641202005662,0.188,46844.0,46840.0,0.96814234]
[1641202005862,0.188,46844.0,46840.0,0.36279879]
[1641202006363,0.14033567,46841.0,46840.0,0.36279879]
[1641202006864,0.32033567,46841.0,46840.0,0.36279879]
[1641202007466,0.51333567,46841.0,46840.0,0.36279879]
[1641202008669,0.32033567,46841.0,46840.0,0.36279879]
[1641202009268,0.32033567,46841.0,46838.0,0.36279879]
[1641202009468,0.50733567,46841.0,46838.0,0.36279879]
[1641202010068,1.27910255,46840.0,46838.0,0.36279879]
[1641202011468,1.47110255,46840.0,46838.0,0.36279879]
[1641202011969,0.81371857,46839.0,46835.0,0.36279879]
[1641202012870,0.34869435,46836.0,46835.0,0.36279879]
[1641202013473,0.52669435,46836.0,46835.0,0.36279879]
[1641202014672,0.34869435,46836.0,46835.0,0.36279879]
[1641202015073,0.34869435,46836.0,46835.0,0.38414971]
[1641202015472,0.52669435,46836.0,46835.0,0.38414971]
[1641202016586,0.178,46836.0,46835.0,0.38414971]
[1641202016987,0.34869435,46837.0,46835.0,0.38414971]
[1641202017589,0.14033567,46853.0,46836.0,0.0213489]
[1641202017590,1.84999218,46850.0,46836.0,0.0213489]
[1641202017787,1.84999218,46850.0,46842.0,0.02134665]
[1641202017989,1.1624551,46844.0,46842.0,0.02134665]
[1641202018491,1.1624551,46844.0,46843.0,0.14033567]
[1641202018692,1.1624551,46844.0,46843.0,0.14133567]
[1641202019190,1.1624551,46848.0,46843.0,0.14133567]
[1641202019389,1.1624551,46848.0,46843.0,0.14033567]
[1641202019689,0.162,46844.0,46843.0,0.32833567]
[1641202019889,0.162,46844.0,46843.0,0.32933567]
[1641202020689,1.1624551,46845.0,46843.0,0.14133567]
[1641202020890,1.1624551,46845.0,46843.0,0.14033567]
[1641202021290,1.1624551,46845.0,46844.0,0.009794]
[1641202021491,1.1624551,46849.0,46844.0,0.009794]
[1641202021691,1.1624551,46849.0,46845.0,0.34099259]
[1641202021893,1.1624551,46849.0,46848.0,0.02134348]
[1641202022091,1.1624551,46851.0,46848.0,0.02134348]
[1641202022291,1.1624551,46851.0,46848.0,0.02657948]
[1641202022490,1.1624551,46851.0,46850.0,0.14033567]
[1641202022689,1.27910255,46854.0,46850.0,0.14033567]
[1641202023091,1.16408757,46853.0,46850.0,0.14033567]
[1641202023490,1.16408757,46853.0,46850.0,0.33133567]
[1641202023890,1.27910255,46856.0,46850.0,0.33133567]
[1641202024193,0.32033567,46859.0,46850.0,0.33133567]
[1641202024194,1.27910255,46857.0,46850.0,0.33133567]
[1641202024393,1.27910255,46857.0,46850.0,1.44933567]
[1641202024592,1.27910255,46857.0,46852.0,0.33872434]
[1641202024794,0.12107032,46855.0,46852.0,0.34851834]
[1641202024992,1.27910255,46857.0,46853.0,0.321224]
[1641202025392,1.27910255,46858.0,46853.0,0.321224]
[1641202025593,0.18,46855.0,46853.0,0.191]
[1641202026803,0.18,46854.0,46850.0,0.14033567]
[1641202026999,1.41943822,46859.0,46850.0,0.14033567]
[1641202027199,0.18,46854.0,46850.0,0.14033567]
[1641202027699,0.18,46854.0,46850.0,0.33433567]
[1641202027899,1.40017099,46858.0,46850.0,0.33433567]
[1641202028098,0.18,46854.0,46850.0,0.33433567]
[1641202029204,1.27910255,46858.0,46853.0,0.02134202]
[1641202029702,0.12106866,46857.0,46853.0,0.02134202]
[1641202031403,1.16257175,46856.0,46853.0,0.02134202]
[1641202031604,1.16257175,46856.0,46853.0,0.21734202]
[1641202032803,0.18,46855.0,46853.0,0.02134202]
[1641202033008,1.16257175,46856.0,46853.0,0.02134202]
[1641202033211,0.34858705,46854.0,46853.0,0.02134202]
[1641202033608,0.34858705,46854.0,46853.0,0.21734202]
[1641202035010,0.34858705,46854.0,46853.0,0.02134202]
[1641202035610,0.34858705,46854.0,46853.0,0.21734202]
[1641202037012,0.34858705,46854.0,46853.0,0.02134202]
[1641202037612,0.34858705,46854.0,46853.0,0.21834202]
[1641202038113,0.18,46855.0,46853.0,0.21834202]
[1641202039413,0.18,46855.0,46853.0,0.02134202]
[1641202039613,0.18,46855.0,46853.0,0.21834202]
[1641202040914,0.18,46855.0,46853.0,0.02134202]
[1641202041613,0.18,46855.0,46853.0,0.21734202]
[1641202042818,0.18,46855.0,46853.0,0.02134202]
[1641202043217,0.36,46855.0,46849.0,0.02134444]
[1641202043418,0.18,46850.0,46849.0,0.02134444]
[1641202043722,0.36,46850.0,46845.0,0.36290945]
[1641202043919,0.18,46846.0,46845.0,0.36290945]
[1641202044720,0.18,46846.0,46844.0,0.62619597]
[1641202044921,0.18,46846.0,46844.0,0.02134675]
[1641202045622,0.18,46846.0,46844.0,0.21434675]
[1641202046925,0.18,46846.0,46844.0,0.02134675]
[1641202047527,0.18,46846.0,46844.0,0.21634675]
[1641202048935,0.18,46846.0,46844.0,0.02134675]
[1641202049133,0.18,46846.0,46839.0,0.02134911]
[1641202049333,0.18,46840.0,46837.0,0.15012967]
[1641202049534,0.27398,46840.0,46837.0,0.15012967]
[1641202051544,0.27398,46840.0,46837.0,0.34312967]
[1641202052849,0.27398,46840.0,46837.0,0.15012967]
[1641202053647,0.27398,46840.0,46837.0,0.34312967]
[1641202054847,0.27398,46840.0,46837.0,0.15012967]
[1641202055648,0.27398,46840.0,46837.0,0.34412967]
[1641202056848,0.27398,46840.0,46837.0,0.15012967]
[1641202057549,0.18,46840.0,46837.0,0.34412967]
[1641202059653,0.18,46840.0,46837.0,0.53812967]
[1641202060958,0.18,46840.0,46837.0,0.15012967]
[1641202061658,0.18,46840.0,46837.0,0.34412967]
[1641202062857,0.18,46840.0,46837.0,0.15012967]
[1641202063557,0.18,46840.0,46837.0,0.34412967]
[1641202064957,0.18,46840.0,46837.0,0.15012967]
[1641202065157,0.18,46840.0,46837.0,0.14033567]
[1641202065558,0.18,46840.0,46837.0,0.33333567]
[1641202066963,0.18,46840.0,46837.0,0.14033567]
[1641202067563,0.18,46840.0,46837.0,0.33333567]
[1641202068963,0.18,46840.0,46837.0,0.14033567]
[1641202069666,0.18,46840.0,46837.0,0.33333567]
[1641202071067,0.18,46840.0,46837.0,0.14033567]
[1641202071667,0.18,46840.0,46837.0,0.33333567]
[1641202072966,0.18,46840.0,46837.0,0.14033567]
[1641202073670,0.18,46840.0,46837.0,0.33333567]
[1641202075068,0.18,46840.0,46837.0,0.14033567]
[1641202075666,0.18,46840.0,46837.0,0.33333567]
[1641202076870,0.18,46840.0,46837.0,0.193]
[1641202077070,0.18,46838.0,46833.0,0.36290945]
[1641202077370,0.36,46834.0,46833.0,0.36290945]
[1641202077768,0.36,46834.0,46833.0,0.55490945]
[1641202077968,0.36,46834.0,46833.0,0.192]
[1641202078371,0.36,46834.0,46833.0,0.0001]
[1641202078571,0.36,46834.0,46828.0,0.50324512]
[1641202078773,0.18,46829.0,46828.0,0.50324512]
[1641202078970,0.36,46829.0,46828.0,0.14033567]
[1641202079171,0.18,46829.0,46828.0,0.14033567]
[1641202079571,0.18,46829.0,46828.0,1.20966936]
[1641202079772,0.362,46829.0,46828.0,1.39366936]
[1641202080373,1.26968767,46829.0,46828.0,0.184]
[1641202080973,1.08768767,46829.0,46826.0,1.20966936]
[1641202081172,1.08768767,46829.0,46828.0,0.80962923]
[1641202081872,1.27168767,46829.0,46828.0,0.99562923]
[1641202082070,1.27168767,46829.0,46828.0,0.186]
[1641202082871,1.27168767,46829.0,46828.0,0.99562923]
[1641202083072,1.08768767,46829.0,46828.0,0.80962923]
[1641202083772,1.23968767,46829.0,46828.0,0.99762923]
[1641202085171,1.08768767,46829.0,46828.0,0.80962923]
[1641202085773,1.27068767,46829.0,46828.0,0.99462923]
[1641202086373,0.45384674,46829.0,46828.0,0.185]
[1641202086980,0.45384674,46829.0,46828.0,0.99462923]
[1641202087176,0.27084674,46829.0,46828.0,0.80962923]
[1641202087776,0.53130674,46829.0,46828.0,0.99362923]
[1641202088181,0.53130674,46829.0,46813.0,0.89790135]
[1641202088378,0.18,46814.0,46813.0,0.87654075]
[1641202088580,0.18,46814.0,46813.0,1.84709218]
[1641202088581,0.25186,46814.0,46813.0,1.84709218]
[1641202089580,0.25186,46814.0,46813.0,1.85688618]
[1641202089778,0.42486,46814.0,46813.0,1.85688618]
[1641202089978,0.24486,46814.0,46813.0,1.85688618]
[1641202090179,0.24486,46814.0,46813.0,0.009794]
[1641202091182,0.34974945,46819.0,46813.0,0.009794]
[1641202091385,0.52974945,46818.0,46813.0,0.009794]
[1641202091582,0.18,46815.0,46813.0,0.009794]
[1641202091786,0.18,46816.0,46813.0,0.009794]
[1641202092184,0.18,46817.0,46813.0,0.009794]
[1641202093598,0.34974945,46818.0,46813.0,0.009794]
[1641202093799,0.173,46817.0,46813.0,0.009794]
[1641202094300,0.173,46817.0,46814.0,0.02136038]
[1641202094798,0.52274945,46817.0,46814.0,0.02136038]
[1641202094998,0.52274945,46817.0,46814.0,1.35374032]
[1641202094999,0.34974945,46817.0,46814.0,1.35374032]
[1641202095798,0.52274945,46817.0,46814.0,1.35374032]
[1641202096399,0.18,46815.0,46814.0,1.35374032]
[1641202096599,0.18,46815.0,46814.0,0.02136038]
[1641202097808,0.361,46815.0,46814.0,0.02136038]
[1641202098199,0.181,46815.0,46814.0,0.02136038]
[1641202098400,0.361,46815.0,46814.0,0.02136038]
[1641202099105,0.18,46815.0,46814.0,0.02136038]
[1641202099705,0.355,46815.0,46814.0,0.02136038]
[1641202099905,0.175,46815.0,46814.0,0.02136038]
[1641202100105,0.355,46815.0,46814.0,0.02136038]
[1641202100907,0.70474945,46815.0,46814.0,0.02136038]
[1641202101107,0.52974945,46815.0,46814.0,0.02136038]
[1641202101707,0.69874945,46815.0,46814.0,0.02136038]
[1641202103108,0.52974945,46815.0,46814.0,0.02136038]
[1641202103310,0.52974945,46815.0,46814.0,0.60822956]
[1641202103709,0.79100945,46815.0,46814.0,0.59898139]
[1641202103909,0.79100945,46815.0,46814.0,0.58686918]
[1641202104109,0.79100945,46815.0,46810.0,0.02136232]
[1641202104311,0.18,46811.0,46803.0,0.14033567]
[1641202104510,0.18,46808.0,46803.0,0.14033567]
[1641202104708,0.18,46808.0,46805.0,0.01211352]
[1641202105508,0.18,46808.0,46804.0,0.01211352]
[1641202105709,0.171,46808.0,46806.0,0.01211352]
[1641202105909,0.18,46807.0,46805.0,0.01211352]
[1641202106209,0.18,46807.0,46803.0,0.1617007]
[1641202106409,0.18,46804.0,46803.0,0.1617007]
[1641202107810,0.356,46804.0,46803.0,0.1617007]
[1641202108310,0.176,46804.0,46803.0,0.1617007]
[1641202108811,0.176,46804.0,46803.0,0.4831367]
[1641202109011,0.3493552,46808.0,46803.0,0.4831367]
[1641202109214,0.3493552,46808.0,46803.0,0.5633667]
[1641202109412,0.3493552,46808.0,46807.0,0.001]
[1641202109813,0.3493552,46808.0,46807.0,0.14133567]
[1641202110413,0.3493552,46808.0,46807.0,0.48086581]
[1641202110614,0.3493552,46808.0,46807.0,0.48186581]
[1641202110813,0.5293552,46808.0,46807.0,0.321956]
[1641202111014,0.18,46808.0,46805.0,1.45374634]
[1641202111214,0.25762,46808.0,46805.0,1.45374634]
[1641202111813,0.42762,46808.0,46802.0,0.02136566]
[1641202112015,0.58225866,46807.0,46804.0,1.33269319]
[1641202112817,0.34919774,46806.0,46805.0,1.33269319]
[1641202113415,0.52919774,46806.0,46805.0,1.33269319]
[1641202113816,0.52019774,46806.0,46805.0,1.33269319]
[1641202114820,0.171,46806.0,46805.0,1.33269319]
[1641202115019,0.58225866,46807.0,46805.0,0.02236344]
[1641202115218,0.58225866,46807.0,46805.0,0.02136344]
[1641202115618,0.34946171,46806.0,46805.0,0.02136344]
[1641202115818,0.42714171,46806.0,46805.0,1.35405663]
[1641202117323,0.07768,46806.0,46805.0,1.35405663]
[1641202117522,0.65993866,46806.0,46805.0,0.02136344]
[1641202117721,0.83093866,46806.0,46805.0,0.02136344]
[1641202118723,1.06384213,46806.0,46803.0,0.62278285]
[1641202118925,0.18,46804.0,46802.0,1.33269319]
[1641202119826,0.352,46804.0,46802.0,1.33269319]
[1641202120430,0.93406541,46804.0,46802.0,1.33269319]
[1641202120929,0.34925978,46803.0,46802.0,1.33269319]
[1641202121329,0.34925978,46803.0,46802.0,1.34480801]
[1641202121730,0.52025978,46803.0,46802.0,1.34480801]
[1641202123230,0.34925978,46803.0,46802.0,1.34480801]
[1641202123836,0.52025978,46803.0,46802.0,8.01e-06]
[1641202124032,0.52025978,46803.0,46798.0,0.93951963]
[1641202124230,0.18,46799.0,46798.0,0.93951963]
[1641202124631,0.18,46799.0,46797.0,0.62278285]
[1641202124834,0.171,46803.0,46798.0,0.001]
[1641202124835,0.18,46802.0,46798.0,0.001]
[1641202125030,0.18,46802.0,46797.0,0.62278285]
[1641202125232,0.27088258,46802.0,46797.0,0.62278285]
[1641202125434,1.25697328,46802.0,46801.0,0.84823741]
[1641202125631,1.43697328,46802.0,46801.0,0.84823741]
[1641202125833,1.60797328,46802.0,46801.0,0.84823741]
[1641202126133,0.44188258,46802.0,46801.0,0.01211602]
[1641202126332,0.44188258,46802.0,46800.0,1.21176772]
[1641202126532,0.53714258,46802.0,46800.0,1.21176772]
[1641202127133,0.36614258,46802.0,46800.0,1.21176772]
[1641202127334,1.53223328,46802.0,46800.0,1.21176772]
[1641202127731,1.72423328,46802.0,46800.0,1.21176772]
[1641202128333,0.09088258,46801.0,46800.0,1.21176772]
[1641202129940,0.28857295,46801.0,46800.0,1.21176772]
[1641202131139,0.09657295,46801.0,46800.0,1.21176772]
[1641202131338,0.27657295,46801.0,46799.0,1.21176772]
[1641202131537,0.09657295,46801.0,46799.0,1.21176772]
[1641202131938,0.09657295,46800.0,46799.0,1.21176772]
[1641202132337,0.27657295,46800.0,46799.0,1.21176772]
[1641202132939,0.27657295,46800.0,46797.0,0.02136776]
[1641202133539,0.00569037,46799.0,46798.0,0.01211601]
[1641202133739,0.00569037,46799.0,46798.0,0.01311601]
[1641202134741,0.18569037,46799.0,46798.0,0.01311601]
[1641202134943,0.00569037,46799.0,46798.0,0.01311601]
[1641202135146,1.1660907,46804.0,46799.0,0.33529266]
[1641202135343,0.56876393,46816.0,46803.0,0.18]
[1641202135547,0.56876393,46816.0,46810.0,0.18]
[1641202135945,0.56876393,46816.0,46815.0,0.001]
[1641202136147,0.56876393,46816.0,46815.0,0.06969]
[1641202136546,0.57368399,46816.0,46815.0,0.06969]
[1641202136949,0.00492006,46816.0,46815.0,0.06969]
[1641202137546,0.00492006,46819.0,46815.0,0.06969]
[1641202137749,0.00492006,46819.0,46815.0,0.06869]
[1641202137947,0.00492006,46816.0,46815.0,0.26269]
[1641202138147,0.00492006,46818.0,46815.0,0.62714317]
[1641202138347,0.18,46821.0,46815.0,0.62714317]
[1641202138348,0.00492006,46816.0,46815.0,0.62614317]
[1641202138546,0.00492006,46816.0,46815.0,0.62714317]
[1641202138749,0.00492006,46820.0,46815.0,0.62714317]
[1641202138949,0.00492006,46816.0,46815.0,0.62614317]
[1641202139148,0.00492006,46816.0,46815.0,0.43314317]
[1641202139349,0.00492006,46819.0,46815.0,0.43314317]
[1641202139549,0.00492006,46819.0,46815.0,0.43214317]
[1641202139749,0.00492006,46820.0,46815.0,0.43214317]
[1641202139950,0.00492006,46818.0,46815.0,0.26269]
[1641202140150,0.00492006,46819.0,46815.0,0.26269]
[1641202140559,0.00492006,46820.0,46815.0,0.26269]
[1641202140760,0.18,46816.0,46815.0,0.194]
[1641202140960,0.26259,46816.0,46815.0,0.194]
[1641202141260,0.26751006,46816.0,46814.0,0.36345317]
[1641202141461,0.26751006,46816.0,46812.0,0.14033567]
[1641202141861,0.00492006,46815.0,46814.0,0.183]
[1641202143162,0.00492006,46815.0,46812.0,0.14033567]
[1641202143962,0.18792006,46815.0,46812.0,0.32733567]
[1641202144764,0.00492006,46814.0,46812.0,0.32733567]
[1641202145164,0.00492006,46814.0,46812.0,0.14033567]
[1641202145465,0.00492006,46817.0,46812.0,0.14033567]
[1641202145963,0.00492006,46817.0,46812.0,0.33033567]
[1641202146764,0.18,46815.0,46812.0,0.33033567]
[1641202147164,0.18,46815.0,46812.0,0.14033567]
[1641202147566,0.00492006,46814.0,46812.0,0.14033567]
[1641202147970,0.179,46815.0,46812.0,0.32233567]
[1641202148369,0.00492006,46813.0,46812.0,0.32233567]
[1641202148568,0.00492006,46814.0,46812.0,0.32233567]
[1641202149071,0.00492006,46813.0,46812.0,0.32233567]
[1641202149270,0.00492006,46813.0,46812.0,0.14033567]
[1641202149670,0.00492006,46814.0,46812.0,0.14033567]
[1641202149870,0.00492006,46814.0,46812.0,0.32833567]
[1641202149871,0.147,46813.0,46812.0,0.32833567]
[1641202150271,0.15192006,46813.0,46812.0,0.32833567]
[1641202150871,0.24278618,46813.0,46812.0,0.32833567]
[1641202151275,0.09578618,46813.0,46812.0,0.14033567]
[1641202151578,1.25851155,46813.0,46812.0,0.14033567]
[1641202151976,1.25851155,46813.0,46812.0,0.33033567]
[1641202153279,1.25851155,46813.0,46812.0,1.03196077]
[1641202153479,0.09578618,46813.0,46812.0,1.63760117]
[1641202153679,0.09578618,46813.0,46812.0,1.44760117]
[1641202153879,0.20678618,46813.0,46812.0,1.63660117]
[1641202155179,0.09578618,46813.0,46812.0,1.44760117]
[1641202155780,0.09578618,46813.0,46812.0,0.74597607]
[1641202155981,1.25851155,46813.0,46812.0,0.33033567]
[1641202157186,1.25851155,46813.0,46812.0,0.14033567]
[1641202157588,0.09578618,46813.0,46812.0,0.14033567]
[1641202157991,0.09578618,46813.0,46812.0,0.33033567]
[1641202158191,0.21692738,46813.0,46812.0,0.33033567]
[1641202158389,1.25784535,46813.0,46812.0,0.33033567]
[1641202158790,1.37898655,46813.0,46812.0,0.33033567]
[1641202159792,0.21692738,46813.0,46812.0,0.33033567]
[1641202159993,1.67719246,46813.0,46812.0,0.32533567]
[1641202160392,1.85719246,46813.0,46812.0,0.32533567]
[1641202160893,1.67719246,46813.0,46812.0,0.32533567]
[1641202161394,0.21692738,46813.0,46812.0,0.07976084]
[1641202161591,0.21692738,46813.0,46808.0,0.6056404]
[1641202161993,0.00492006,46812.0,46808.0,0.6056404]
[1641202162290,0.12606126,46812.0,46808.0,0.6056404]
[1641202162792,0.12606126,46811.0,46808.0,0.6056404]
[1641202162994,0.21692738,46811.0,46809.0,0.6056404]
[1641202163392,0.12606126,46810.0,46809.0,0.6056404]
[1641202163993,0.39892738,46810.0,46809.0,0.184]
[1641202164794,0.39892738,46810.0,46809.0,1.48401502]
[1641202165193,0.39892738,46810.0,46809.0,1.30001502]
[1641202165194,0.21692738,46810.0,46809.0,1.30001502]
[1641202165994,0.35592738,46810.0,46809.0,0.7896404]
[1641202166395,1.1698603,46810.0,46809.0,0.184]
[1641202167196,0.35592738,46810.0,46809.0,0.184]
[1641202167397,0.21692738,46810.0,46808.0,0.36322691]
[1641202167596,0.12606126,46810.0,46808.0,0.36322691]
[1641202167797,0.5863239,46810.0,46808.0,0.36322691]
[1641202167998,0.00492006,46809.0,46808.0,0.54922691]
[1641202168599,0.5863239,46809.0,46808.0,0.21715698]
[1641202168799,0.5863239,46809.0,46808.0,0.21815698]
[1641202168999,0.5863239,46809.0,46808.0,0.72046498]
[1641202169000,0.4340938,46809.0,46808.0,0.72046498]
[1641202169199,0.4340938,46809.0,46808.0,0.53346498]
[1641202169401,0.34903844,46811.0,46808.0,2.07607927]
[1641202169700,0.34903844,46811.0,46809.0,1.118]
[1641202169900,0.34903844,46811.0,46810.0,0.001]
[1641202170200,0.34903844,46811.0,46810.0,0.45571267]
[1641202170400,0.81393292,46814.0,46810.0,1.57371267]
[1641202170600,0.81393292,46814.0,46810.0,0.63571267]
[1641202170801,0.34911095,46812.0,46810.0,0.63571267]
[1641202171005,0.34911095,46812.0,46810.0,1.75371267]
[1641202171703,0.34911095,46812.0,46810.0,1.57371267]
[1641202171902,0.81393292,46815.0,46810.0,0.82571267]
[1641202172103,0.81393292,46816.0,46811.0,0.6935569]
[1641202172304,0.81393292,46816.0,46815.0,0.14033567]
[1641202173004,0.09084874,46821.0,46815.0,0.14033567]
[1641202173005,1.37055968,46821.0,46815.0,0.14033567]
[1641202173303,0.18,46819.0,46815.0,0.14033567]
[1641202173505,1.37055968,46821.0,46815.0,0.14033567]
[1641202173904,0.12113209,46820.0,46815.0,0.33033567]
[1641202175115,0.09084874,46819.0,46815.0,0.33033567]
[1641202175316,0.09084874,46819.0,46815.0,0.14033567]
[1641202175919,0.17984874,46819.0,46815.0,0.32933567]
[1641202176317,0.18,46818.0,46815.0,0.32933567]
[1641202176516,0.30111175,46818.0,46815.0,0.32933567]
[1641202176920,0.18,46818.0,46815.0,0.32933567]
[1641202177118,0.27084874,46818.0,46815.0,0.32933567]
[1641202177319,0.09084874,46818.0,46815.0,0.14033567]